bitfinex/quotes_ETHUSD_20250519
["timestamp","ask_amount","ask_price","bid_price","bid_amount"]
[1747618758575,4.12150187,2426.3,2426.2,0.7569]
[1747618758975,4.12150187,2426.3,2425.9,18.20588844]
[1747618758976,4.12196361,2426.1,2425.9,18.96278844]
[1747618759176,4.12196361,2426.1,2425.9,0.41488844]
[1747618759177,4.12201154,2426.0,2425.9,0.41488844]
[1747618759409,9.162,2426.4,2425.9,0.41488844]
[1747618759707,21.29633757,2427.0,2425.9,0.41488844]
[1747618759708,9.162,2426.6,2425.9,0.41488844]
[1747618759907,4.1213042,2426.5,2426.0,0.8024]
[1747618760074,4.1213042,2426.5,2426.1,9.176]
[1747618760274,4.12082251,2426.7,2426.0,0.8024]
[1747618760515,4.12148895,2426.4,2426.1,9.177]
[1747618760678,4.12065271,2426.8,2426.1,9.177]
[1747618760998,4.12099233,2426.6,2425.9,9.177]
[1747618761178,4.12201154,2426.0,2425.9,9.177]
[1747618761378,4.12189769,2426.1,2425.9,9.177]
[1747618761710,4.12201154,2426.0,2425.9,9.177]
[1747618761878,4.12201154,2426.0,2425.7,0.7547]
[1747618762077,4.12201154,2426.0,2425.9,9.177]
[1747618762283,0.41209923,2426.6,2425.9,9.177]
[1747618762514,9.9581,2426.9,2425.9,10.20458409]
[1747618762820,4.12175499,2426.2,2425.9,9.177]
[1747618763028,4.12201154,2426.0,2425.9,9.177]
[1747618764208,4.12235138,2425.8,2425.7,0.7547]
[1747618764514,4.12235138,2425.8,2425.7,9.161]
[1747618765081,4.12252528,2425.7,2425.4,1.21917056]
[1747618765390,10.2424355,2425.8,2425.5,9.161]
[1747618765887,4.12253883,2425.7,2425.5,9.161]
[1747618766094,10.24243323,2425.8,2425.5,9.161]
[1747618766283,10.24243323,2425.8,2425.6,9.162]
[1747618766881,10.24243323,2425.8,2425.4,0.7879]
[1747618766882,4.12252133,2425.7,2425.4,0.7879]
[1747618767081,4.12252133,2425.7,2425.5,9.162]
[1747618767593,4.12315266,2425.4,2425.2,17.793]
[1747618767796,4.1229449,2425.5,2425.3,9.162]
[1747618767981,10.24270356,2425.6,2425.3,9.162]
[1747618767982,4.12303125,2425.4,2425.3,9.162]
[1747618768615,4.12288876,2425.5,2424.8,4.12404076]
[1747618768616,4.12320125,2425.3,2424.8,0.8172]
[1747618768825,4.12354129,2425.1,2424.7,9.162]
[1747618769116,4.12383022,2425.0,2424.7,9.162]
[1747618769319,6.12,2425.2,2424.7,9.162]
[1747618769616,6.12,2425.2,2425.0,4.12357434]
[1747618769921,6.12,2425.8,2425.2,0.8172]
[1747618770130,9.159,2426.1,2425.5,4.12277431]
[1747618770131,6.12,2425.9,2425.5,4.12277431]
[1747618770483,10.24218731,2425.9,2425.3,9.163]
[1747618770723,6.12,2425.9,2425.3,13.28619843]
[1747618770900,6.12,2425.9,2425.3,10.57333984]
[1747618771098,10.24228794,2425.9,2425.4,4.12299849]
[1747618771406,6.12,2425.9,2425.4,4.12286682]
[1747618771608,6.12,2426.2,2426.0,4.12185194]
[1747618771794,6.12,2426.5,2426.1,9.163]
[1747618772819,10.24116245,2426.5,2426.1,9.163]
[1747618773182,6.12,2426.5,2426.1,9.163]
[1747618773381,6.12,2426.5,2426.2,0.7884]
[1747618773916,10.24119775,2426.5,2426.2,0.7884]
[1747618774316,6.12,2426.5,2426.2,6.31735199]
[1747618774487,6.12,2426.8,2426.2,6.31738655]
[1747618774688,6.12,2426.8,2426.3,17.8]
[1747618774916,4.12090653,2426.7,2426.4,9.164]
[1747618775428,6.12,2426.8,2426.4,13.28522825]
[1747618775789,6.12,2426.8,2426.5,9.163]
[1747618776312,6.12,2426.8,2426.7,4.12082251]
[1747618776627,6.12,2427.4,2427.0,4.12031314]
[1747618776837,0.46904114,2427.9,2427.2,1.3384]
[1747618776986,0.46904114,2427.9,2427.3,17.84019052]
[1747618777186,0.7936,2428.3,2427.3,17.84019052]
[1747618777187,4.11963417,2427.4,2427.3,17.799]
[1747618777395,0.7814,2427.6,2427.1,9.163]
[1747618777625,0.49006442,2427.5,2427.1,9.163]
[1747618777814,4.11891824,2427.9,2427.3,4.11980389]
[1747618778021,4.11895543,2427.8,2427.1,9.163]
[1747618778321,4.11993916,2427.3,2427.1,9.163]
[1747618778519,4.11987204,2427.3,2427.1,9.163]
[1747618778821,4.11956748,2427.5,2427.1,9.163]
[1747618779025,4.11966111,2427.4,2427.1,9.163]
[1747618779190,4.11878578,2427.9,2427.1,10.49134208]
[1747618779394,0.7814,2428.0,2427.3,0.8272]
[1747618779600,4.11905832,2427.8,2427.3,0.8272]
[1747618779801,4.11914615,2427.7,2427.3,0.8272]
[1747618780662,4.11931178,2427.6,2427.3,0.8272]
[1747618780820,4.11898602,2427.8,2427.3,2.31653365]
[1747618781401,4.11929605,2427.6,2427.3,2.31653365]
[1747618782342,0.7814,2428.0,2427.3,2.31653365]
[1747618782627,4.11878578,2427.9,2427.3,2.31653365]
[1747618782930,4.11901306,2427.8,2427.3,2.31653365]
[1747618783236,4.11901306,2427.8,2427.4,0.67382776]
[1747618783438,4.1191623,2427.7,2427.4,0.67382776]
[1747618783639,4.11941235,2427.6,2427.5,9.16]
[1747618784437,4.11896586,2427.8,2427.5,9.16]
[1747618785133,4.11926631,2427.7,2427.5,9.16]
[1747618786236,4.11896586,2427.8,2427.5,9.16]
[1747618787569,13.26346212,2428.1,2427.5,9.16]
[1747618787721,9.145,2428.1,2427.5,9.16]
[1747618787920,4.11908167,2427.8,2427.5,9.16]
[1747618788222,4.11908167,2427.8,2427.5,10.30765337]
[1747618789157,4.1191978,2427.7,2427.6,9.159]
[1747618789517,4.11898477,2427.8,2427.6,9.159]
[1747618789722,6.12,2428.0,2427.3,2.86653365]
[1747618789931,4.11887281,2427.9,2427.4,9.159]
[1747618790130,4.11897073,2427.8,2427.4,9.159]
[1747618790331,6.12,2428.0,2427.3,0.8272]
[1747618790555,4.11963417,2427.4,2427.3,9.158]
[1747618792055,15.263,2427.9,2427.3,9.158]
[1747618792348,4.11963417,2427.4,2427.3,9.158]
[1747618793053,4.11952761,2427.5,2427.3,9.158]
[1747618793654,4.1192972,2427.6,2427.3,9.158]
[1747618793655,4.11931592,2427.6,2427.3,9.158]
[1747618793827,4.11963417,2427.4,2427.3,9.158]
[1747618794224,4.12014338,2427.1,2427.0,0.828]
[1747618794424,1.5263,2427.9,2427.0,9.968]
[1747618794425,4.12001224,2427.2,2427.0,9.968]
[1747618794633,6.12,2427.4,2427.0,10.9648]
[1747618794956,4.11920369,2427.7,2427.2,4.11981894]
[1747618795157,4.11929646,2427.6,2427.1,4.12006547]
[1747618795529,4.11954156,2427.5,2427.0,15.0850306]
[1747618795725,4.11937802,2427.6,2427.1,4.1201043]
[1747618795925,4.11927814,2427.7,2427.1,5.62853806]
[1747618796163,4.11941957,2427.6,2427.1,5.62853806]
[1747618796863,4.11946471,2427.5,2427.1,1.50849043]
[1747618797439,4.11927814,2427.7,2427.1,5.6285886]
[1747618797440,4.1193331,2427.6,2427.1,5.6285886]
[1747618797926,4.11919891,2427.7,2427.2,4.11996098]
[1747618798127,6.12,2427.8,2427.4,4.1196339]
[1747618798366,6.12,2427.8,2427.5,18.584]
[1747618798670,4.11880072,2427.9,2427.6,9.14]
[1747618798832,10.23870021,2428.0,2427.6,9.14]
[1747618799023,4.11880695,2427.9,2427.6,9.14]
[1747618799223,4.11927384,2427.7,2427.6,9.14]
[1747618799426,4.11929477,2427.6,2427.5,17.789]
[1747618799635,4.11929477,2427.6,2427.5,26.929]
[1747618799930,4.11929477,2427.6,2427.5,17.789]
[1747618800164,4.12031314,2427.0,2426.9,1.14254742]
[1747618800462,11.44964445,2427.0,2426.9,0.30974742]
[1747618800685,11.44964445,2427.0,2426.0,18.59889674]
[1747618800686,4.12082251,2426.7,2426.0,0.80989674]
[1747618800868,4.12184163,2426.1,2426.0,0.80989674]
[1747618801029,19.83039421,2426.1,2426.0,1.15399509]
[1747618801234,19.82505573,2426.1,2426.0,1.15399509]
[1747618801445,14.09173011,2426.1,2426.0,1.15399509]
[1747618801732,5.81025258,2426.1,2426.0,1.15399509]
[1747618801974,14.94425258,2426.3,2426.0,1.15399509]
[1747618802480,14.94425258,2426.3,2426.0,0.34409835]
[1747618802481,5.81025258,2426.3,2426.0,0.34409835]
[1747618802670,9.93182795,2426.3,2426.0,0.34409835]
[1747618802985,9.93182795,2426.3,2426.1,9.142]
[1747618803143,5.81025258,2426.3,2426.1,9.142]
[1747618803343,4.12201154,2426.0,2425.9,0.7732]
[1747618803646,5.81025258,2426.0,2425.8,9.142]
[1747618803845,5.81025258,2426.0,2425.7,9.142]
[1747618804684,4.12220059,2425.9,2425.7,9.142]
[1747618805275,4.12220059,2425.9,2425.4,0.7768]
[1747618805477,9.93231568,2426.0,2425.5,9.143]
[1747618805705,9.93231568,2426.0,2425.5,13.26583901]
[1747618805879,5.81025258,2426.0,2425.6,4.12267522]
[1747618806056,5.81025258,2426.0,2425.6,2.36654564]
[1747618806259,5.81025258,2426.4,2425.6,2.36654564]
[1747618806497,4.1218426,2426.1,2425.6,0.55]
[1747618806786,4.12235138,2425.8,2425.7,9.143]
[1747618806947,9.93260396,2425.8,2425.7,9.143]
[1747618807874,5.81025258,2425.8,2425.7,9.143]
[1747618808081,9.93260396,2425.8,2425.7,9.143]
[1747618808376,4.12286126,2425.5,2425.4,0.7768]
[1747618808564,4.12286126,2425.5,2425.1,0.7849]
[1747618808769,4.12286126,2425.5,2425.2,9.144]
[1747618809850,4.12371134,2425.0,2424.9,26.933]
[1747618810050,0.41237113,2425.0,2424.9,26.933]
[1747618810255,4.12371134,2425.0,2424.9,26.933]
[1747618810782,5.81025258,2425.4,2424.9,26.933]
[1747618811088,4.12355242,2425.1,2425.0,9.146]
[1747618811285,4.12355242,2425.1,2424.5,10.22865073]
[1747618811286,4.12399836,2424.9,2424.7,9.146]
[1747618811589,4.12380918,2425.0,2424.7,9.146]
[1747618811756,6.58595258,2425.1,2424.7,9.146]
[1747618811956,4.12405146,2424.8,2424.7,9.146]
[1747618812152,4.12405146,2424.8,2424.0,4.12537354]
[1747618812153,0.8102,2424.8,2423.3,0.80698167]
[1747618812356,4.12541254,2424.0,2423.3,0.80698167]
[1747618812567,4.12541254,2424.0,2423.3,4.93346648]
[1747618812776,4.12561712,2423.9,2423.3,4.90178481]
[1747618812979,4.12525706,2424.1,2423.4,4.12643393]
[1747618813251,9.132,2424.3,2423.3,2.59275807]
[1747618813455,9.132,2424.3,2423.3,7.02443748]
[1747618813456,4.12563497,2423.9,2423.3,7.02443748]
[1747618813687,9.132,2424.3,2423.3,2.59275807]
[1747618813891,4.12568514,2423.9,2423.4,9.146]
[1747618814394,4.12518229,2424.2,2423.5,9.148]
[1747618814555,4.94196609,2424.6,2423.8,4.12574426]
[1747618814757,0.8175,2424.9,2424.2,4.12493777]
[1747618815091,0.8175,2424.9,2424.0,9.148]
[1747618815092,4.12486796,2424.4,2424.0,9.148]
[1747618815787,4.12433751,2424.7,2424.0,9.148]
[1747618816088,4.94138473,2424.9,2424.1,0.782]
[1747618816267,0.65859526,2425.0,2424.3,4.12477713]
[1747618816465,0.8175,2425.2,2424.4,4.12468652]
[1747618816658,9.132,2425.5,2424.5,9.18924168]
[1747618816862,9.132,2425.5,2424.6,9.148]
[1747618817066,4.12371588,2425.0,2424.6,9.148]
[1747618817380,4.12430981,2424.7,2424.3,9.69467771]
[1747618817696,0.8206,2424.9,2424.3,9.69467771]
[1747618817697,4.12416525,2424.8,2424.3,9.69467771]
[1747618818199,4.94449159,2424.9,2424.3,0.54567771]
[1747618818200,0.8206,2424.9,2424.3,0.54567771]
[1747618818387,4.12447828,2424.6,2424.3,9.149]
[1747618818882,4.12429006,2424.7,2424.3,9.149]
[1747618819080,0.8206,2424.9,2424.3,9.149]
[1747618819278,4.12473189,2424.4,2424.3,9.149]
[1747618819595,4.12500646,2424.3,2424.1,9.149]
[1747618819762,4.12476441,2424.4,2424.1,9.149]
[1747618820093,4.12506298,2424.3,2424.1,9.149]
[1747618820712,4.12457056,2424.5,2424.1,9.149]
[1747618821092,4.12518989,2424.2,2424.1,9.15]
[1747618821793,0.8265,2424.2,2423.7,9.15]
[1747618821964,4.95165032,2424.2,2423.7,9.15]
[1747618822164,5.81025258,2424.5,2424.0,0.8187]
[1747618822380,5.81025258,2424.5,2424.0,4.94400229]
[1747618822587,5.81025258,2424.5,2424.3,4.1247725]
[1747618822797,4.1243031,2424.7,2424.3,9.15]
[1747618823004,14.19410114,2424.8,2424.3,9.15]
[1747618823165,14.19406556,2424.8,2424.3,9.15]
[1747618823500,4.12453046,2424.6,2424.2,9.151]
[1747618823800,4.12456883,2424.5,2424.2,9.151]
[1747618823998,10.07,2424.8,2424.3,4.12487992]
[1747618824197,4.12435147,2424.7,2424.2,9.151]
[1747618824718,10.07,2424.8,2424.3,4.16606182]
[1747618824894,4.12432088,2424.7,2424.2,13.2760017]
[1747618825211,10.07,2424.8,2424.3,9.13]
[1747618825411,4.12470286,2424.5,2424.3,9.13]
[1747618825616,14.19405673,2424.8,2424.3,9.13]
[1747618825811,4.12449865,2424.6,2424.3,9.13]
[1747618826033,4.12449865,2424.6,2424.0,5.43842258]
[1747618826034,4.12435565,2424.7,2424.2,4.12503484]
[1747618826181,4.12435565,2424.7,2424.4,9.13]
[1747618826599,14.19405265,2424.8,2424.4,9.13]
[1747618826800,5.81025258,2424.8,2424.5,0.8072]
[1747618827302,5.81025258,2424.8,2424.6,4.12437387]
[1747618827776,5.81025258,2424.8,2424.5,18.6172]
[1747618828010,5.81025258,2424.8,2424.6,4.12436704]
[1747618828234,5.81025258,2424.8,2424.7,9.13]
[1747618830415,5.81025258,2424.8,2424.7,13.25422155]
[1747618831214,4.12481422,2424.4,2424.2,0.7553]
[1747618831416,4.12452426,2424.6,2424.2,0.7553]
[1747618831626,4.12490203,2424.3,2424.2,0.7553]
[1747618831807,19.81112319,2424.8,2424.2,0.7553]
[1747618832021,4.12470889,2424.5,2424.2,0.7553]
[1747618832227,1.98111232,2424.7,2424.1,9.13]
[1747618832732,4.12455017,2424.6,2424.1,9.13]
[1747618832933,4.12459154,2424.5,2424.1,9.13]
[1747618833136,1.98111232,2424.7,2424.1,9.13]
[1747618833433,1.98111232,2424.7,2423.1,0.20033645]
[1747618833434,4.12626366,2423.5,2423.4,9.13]
[1747618833640,9.93653109,2423.5,2423.2,0.41312695]
[1747618833850,4.12660421,2423.3,2423.2,0.41312695]
[1747618834334,10.73675679,2423.3,2423.2,0.41312695]
[1747618834507,29.11501706,2423.3,2423.2,0.41312695]
[1747618834712,32.43916414,2423.3,2423.2,0.41312695]
[1747618835402,32.43916414,2423.3,2422.3,9.132]
[1747618835403,16.68015258,2423.3,2422.3,9.132]
[1747618835763,4.12729091,2422.9,2422.3,13.26024859]
[1747618836122,4.12715147,2423.0,2422.4,4.12808353]
[1747618836439,4.12776492,2422.7,2422.3,9.132]
[1747618836737,4.12757175,2422.8,2422.3,9.132]
[1747618836935,20.8068151,2423.3,2422.4,0.55]
[1747618836936,16.68015258,2423.3,2422.4,0.55]
[1747618837156,4.1257762,2423.8,2422.7,5.4911262]
[1747618837444,4.12611001,2423.6,2423.1,0.55]
[1747618837632,4.12611001,2423.6,2422.8,18.256]
[1747618837633,4.12653589,2423.4,2423.2,9.132]
[1747618837837,9.123,2423.7,2422.9,9.132]
[1747618838215,4.12624567,2423.6,2422.9,9.132]
[1747618838409,9.123,2423.7,2422.9,9.132]
[1747618838664,5.81025258,2423.8,2422.9,9.132]
[1747618838966,9.124,2423.7,2422.9,9.132]
[1747618839254,4.12652604,2423.4,2422.9,9.132]
[1747618839453,4.12645329,2423.4,2422.9,9.132]
[1747618839659,4.12641411,2423.5,2422.9,9.132]
[1747618839961,4.12652812,2423.4,2422.9,9.132]
[1747618840160,1.73767918,2423.4,2423.0,9.132]
[1747618840661,9.93604714,2423.8,2423.0,13.25899782]
[1747618840823,9.123,2423.7,2423.1,4.12692633]
[1747618841146,5.81025258,2423.8,2423.3,4.94430103]
[1747618841321,4.12524235,2424.1,2423.3,0.8178]
[1747618841518,4.12557859,2424.0,2423.4,4.12641063]
[1747618841755,4.12557859,2424.0,2423.5,9.133]
[1747618842062,6.44391075,2424.0,2423.4,9.133]
[1747618842232,4.12705571,2423.1,2423.0,9.133]
[1747618842434,5.81025258,2423.1,2422.7,9.133]
[1747618842640,4.12742821,2422.9,2422.7,9.133]
[1747618843828,4.12728837,2422.9,2422.7,9.133]
[1747618844035,4.12714496,2423.0,2422.7,9.133]
[1747618844331,5.81025258,2423.1,2422.7,10.45909513]
[1747618844537,5.81025258,2423.1,2423.0,4.12711514]
[1747618844739,5.81025258,2423.1,2422.9,0.7593]
[1747618844936,5.81025258,2423.6,2422.9,4.92780421]
[1747618845135,4.94297382,2424.1,2422.9,4.92780421]
[1747618845136,13.2482358,2424.2,2423.6,0.55]
[1747618845361,4.12498859,2424.3,2423.7,13.25984869]
[1747618845573,0.8177,2424.4,2423.4,17.818]
[1747618845743,4.12557939,2424.0,2423.8,9.134]
[1747618845939,4.12507218,2424.2,2423.7,9.134]
[1747618846247,4.12585799,2423.8,2423.7,9.134]
[1747618846642,4.12558273,2423.9,2423.4,17.818]
[1747618846939,4.12643393,2423.4,2423.3,9.134]
[1747618847153,4.12672303,2423.3,2423.1,9.134]
[1747618847362,4.12677451,2423.2,2423.1,9.134]
[1747618848563,4.93117451,2423.2,2423.1,9.134]
[1747618848751,4.12745583,2422.8,2422.7,26.952]
[1747618849264,2.62227804,2423.2,2422.7,26.952]
[1747618849429,9.9254,2423.5,2422.7,26.952]
[1747618849629,1.2169858,2423.8,2422.7,26.952]
[1747618849841,9.12,2423.6,2422.8,4.12743159]
[1747618850041,9.59899905,2423.6,2422.8,4.12743159]
[1747618850258,4.12671927,2423.3,2422.8,4.12743159]
[1747618850635,4.12681449,2423.2,2422.7,31.07960983]
[1747618851168,4.12681449,2423.2,2422.7,26.952]
[1747618851344,4.12681449,2423.2,2422.7,31.07962288]
[1747618851544,4.12681449,2423.2,2422.7,34.73867764]
[1747618851942,4.12681449,2423.2,2422.7,30.61105476]
[1747618852142,0.47899905,2423.6,2422.8,1.3175]
[1747618852464,5.81025258,2423.6,2423.1,0.55]
[1747618852636,5.81025258,2423.6,2423.2,9.135]
[1747618852963,9.9363685,2423.6,2423.2,9.135]
[1747618853165,5.81025258,2423.6,2423.4,0.55]
[1747618853365,5.81025258,2423.6,2423.5,4.12626366]
[1747618853531,5.81025258,2423.6,2423.5,9.135]
[1747618854582,5.81025258,2423.6,2423.3,0.7974]
[1747618854863,9.93634599,2423.6,2423.5,9.119]
[1747618855450,5.81025258,2423.6,2423.5,9.119]
[1747618856069,9.93634599,2423.6,2423.5,9.119]
[1747618857369,4.12641614,2423.5,2423.1,0.7943]
[1747618857681,4.12660421,2423.3,2423.2,9.119]
[1747618859082,4.12660421,2423.3,2422.7,17.818]
[1747618859083,5.81025258,2423.3,2422.7,17.818]
[1747618859285,5.81025258,2423.3,2422.8,4.12733398]
[1747618859586,4.12679097,2423.2,2422.7,21.94554497]
[1747618859796,5.81025258,2423.3,2422.9,0.8202]
[1747618860143,5.81025258,2423.3,2423.0,9.669]
[1747618860596,5.81025258,2423.3,2423.0,9.119]
[1747618860739,4.12698397,2423.1,2422.9,0.8202]
[1747618860939,4.1268486,2423.2,2422.9,9.9392]
[1747618861281,4.12711514,2423.0,2422.9,9.119]
[1747618861587,9.93736772,2423.0,2422.9,9.119]
[1747618862153,4.12745583,2422.8,2422.3,1.16662695]
[1747618862354,4.12813738,2422.4,2422.3,0.41312695]
[1747618862850,4.12803694,2422.5,2422.3,0.41312695]
[1747618863058,13.24283336,2422.6,2422.3,0.41312695]
[1747618863285,4.12813738,2422.4,2422.3,0.41312695]
[1747618863484,4.12822076,2422.4,2422.0,26.94]
[1747618863689,4.12822076,2422.4,2422.0,30.15353057]
[1747618863886,4.12836546,2422.3,2422.0,30.15353057]
[1747618864090,5.81025258,2422.5,2422.0,26.94]
[1747618864293,0.8198,2422.4,2422.0,26.94]
[1747618864493,0.8198,2422.4,2421.5,9.53312695]
[1747618864655,5.81025258,2422.3,2421.6,0.81749164]
[1747618864989,4.12875456,2422.1,2421.6,0.7762]
[1747618865157,5.81025258,2422.3,2421.6,0.7762]
[1747618865355,4.12849348,2422.2,2421.6,4.90558896]
[1747618865661,4.12859266,2422.2,2421.6,4.90558896]
[1747618865854,9.93871175,2422.3,2421.7,13.25020113]
[1747618866195,5.81025258,2422.3,2421.8,8.0]
[1747618866397,5.81025258,2422.3,2422.2,4.12847824]
[1747618866598,5.81025258,2422.8,2422.2,9.121]
[1747618866752,5.81025258,2422.8,2422.5,0.8181]
[1747618867506,5.81025258,2422.8,2422.5,4.94596927]
[1747618867652,5.81025258,2422.9,2422.6,0.55]
[1747618867857,5.81025258,2422.9,2422.7,9.121]
[1747618868102,5.81025258,2422.9,2422.5,0.8181]
[1747618868343,5.81025258,2422.9,2422.6,9.121]
[1747618868607,4.1276262,2422.7,2422.1,21.95052208]
[1747618868892,4.1276262,2422.7,2422.1,26.943]
[1747618868893,4.12847824,2422.2,2422.1,26.943]
[1747618869055,4.12864869,2422.1,2421.7,9.121]
[1747618869393,4.12916012,2421.8,2421.7,9.121]
[1747618870395,4.12973331,2421.5,2421.3,9.121]
[1747618870595,4.12933063,2421.7,2421.3,9.121]
[1747618870756,9.93945567,2421.8,2421.3,9.121]
[1747618871173,9.93945567,2421.8,2421.2,17.823]
[1747618871174,5.81025258,2421.8,2421.2,17.823]
[1747618871354,5.81025258,2421.8,2421.6,4.9334762]
[1747618871559,5.81025258,2421.8,2421.7,4.12933063]
[1747618871868,5.81025258,2421.8,2421.2,17.823]
[1747618872074,9.93942208,2421.8,2421.6,9.122]
[1747618872289,5.81025258,2421.8,2421.6,9.122]
[1747618872461,6.56165258,2421.8,2421.3,0.34476628]
[1747618872892,6.56165258,2421.8,2421.4,9.122]
[1747618873093,6.56165258,2421.8,2421.4,9.46675204]
[1747618873261,5.81025258,2421.8,2421.6,4.12940845]
[1747618873462,4.12816077,2422.4,2421.9,4.12889241]
[1747618873463,5.81025258,2422.3,2421.9,4.12889241]
[1747618873701,5.81025258,2422.3,2421.6,0.7947]
[1747618873702,5.81025258,2422.3,2422.0,9.122]
[1747618873864,5.81025258,2422.3,2422.0,13.25079865]
[1747618874060,5.81025258,2422.3,2422.2,4.12847824]
[1747618874397,5.81025258,2422.8,2422.2,1.81738269]
[1747618874558,4.90755915,2423.1,2422.4,4.12810336]
[1747618874756,0.46904114,2423.2,2422.6,4.12770097]
[1747618874757,4.59590118,2423.2,2422.6,4.12770097]
[1747618874985,4.59590118,2423.2,2422.6,4.92240097]
[1747618875454,0.46904114,2423.2,2422.8,4.1274521]
[1747618875659,0.46904114,2423.2,2422.9,4.12727239]
[1747618875882,0.46904114,2423.2,2423.0,9.123]
[1747618876502,0.46904114,2423.2,2423.1,0.04126708]
[1747618876723,0.46904114,2423.2,2422.9,4.12719816]
[1747618876868,4.12665782,2423.3,2423.0,9.123]
[1747618877507,4.12694482,2423.1,2423.0,9.123]
[1747618878001,4.12647123,2423.4,2422.9,9.122]
[1747618878170,4.12658291,2423.4,2422.9,9.122]
[1747618878376,9.111,2423.6,2422.9,9.122]
[1747618878609,13.23716843,2423.6,2422.9,9.122]
[1747618878901,4.12686561,2423.2,2422.9,9.122]
[1747618879199,4.12714423,2423.0,2422.6,0.7947]
[1747618879388,4.12643393,2423.4,2423.0,9.122]
[1747618879594,4.12615011,2423.6,2423.1,4.12694119]
[1747618879892,4.12653132,2423.4,2423.0,9.122]
[1747618880095,13.23717066,2423.6,2423.1,4.1269322]
[1747618880299,9.111,2423.6,2423.0,10.4469407]
[1747618880502,9.111,2423.6,2423.0,9.122]
[1747618880803,4.12635353,2423.5,2423.0,9.122]
[1747618881225,4.12612717,2423.6,2423.0,9.122]
[1747618881438,4.12626758,2423.5,2423.0,13.24904304]
[1747618882191,4.12606895,2423.7,2423.1,0.8014]
[1747618882417,4.87725942,2424.0,2423.4,4.1262787]
[1747618882605,0.7518,2424.4,2423.7,4.12587088]
[1747618882798,4.12532966,2424.1,2423.7,0.8014]
[1747618883728,2.17922308,2424.6,2423.7,0.8014]
[1747618884025,4.12491924,2424.3,2423.7,0.8014]
[1747618884229,4.12517218,2424.2,2423.8,9.121]
[1747618884430,4.12575294,2423.8,2423.7,9.121]
[1747618884592,4.12546928,2424.0,2423.7,9.121]
[1747618884593,0.8106,2424.4,2423.7,9.121]
[1747618884788,4.12499571,2424.3,2423.7,14.57156531]
[1747618885049,9.9176,2424.7,2423.8,0.804]
[1747618885203,4.12482403,2424.4,2423.8,0.804]
[1747618885525,9.9176,2424.7,2424.0,4.12539086]
[1747618885526,4.12461438,2424.5,2424.0,4.12539086]
[1747618885693,4.12466768,2424.5,2423.9,4.12544031]
[1747618885889,4.12474713,2424.4,2423.9,4.12558273]
[1747618886191,4.12443741,2424.6,2423.9,4.12558273]
[1747618886389,4.12456176,2424.5,2423.8,0.804]
[1747618886590,5.5286459,2424.6,2423.9,4.1255514]
[1747618886830,4.12464722,2424.5,2423.9,4.1255514]
[1747618887004,4.12464526,2424.5,2423.8,4.92971442]
[1747618887199,4.12439165,2424.6,2423.8,18.624]
[1747618887403,0.815,2425.0,2423.9,4.67557042]
[1747618887627,4.59149155,2425.8,2424.7,4.12416075]
[1747618887628,2.03267689,2425.6,2424.7,4.12416075]
[1747618887931,4.12286126,2425.5,2424.8,14.0672901]
[1747618888092,4.12311695,2425.4,2424.9,9.106]
[1747618888298,4.12320931,2425.3,2424.9,9.106]
[1747618889133,4.12311328,2425.4,2424.9,9.106]
[1747618889332,4.12337246,2425.2,2424.9,9.106]
[1747618889696,4.1231155,2425.4,2424.9,9.106]
[1747618889895,4.12348438,2425.2,2424.9,9.106]
[1747618890131,0.46904114,2425.8,2424.8,0.7961]
[1747618890132,4.12316258,2425.4,2424.8,0.7961]
[1747618890433,4.12320125,2425.3,2424.9,9.104]
[1747618890594,4.12305149,2425.4,2424.9,16.41181111]
[1747618890790,9.101,2425.7,2424.9,3.18402113]
[1747618891002,4.12338598,2425.2,2425.0,9.104]
[1747618891402,4.1234128,2425.2,2425.0,9.104]
[1747618891625,9.101,2425.7,2425.0,9.104]
[1747618891820,4.12320556,2425.3,2425.0,9.104]
[1747618892035,8.0,2425.8,2425.0,10.09401]
[1747618892234,4.12321996,2425.3,2425.0,10.09401]
[1747618892435,4.12354129,2425.1,2425.0,9.104]
[1747618892638,9.1,2425.7,2424.7,17.816]
[1747618892639,0.7793,2425.3,2424.7,17.816]
[1747618892825,4.12422155,2424.7,2424.6,9.102]
[1747618893327,4.12456176,2424.5,2424.4,9.8741]
[1747618893527,4.1237385,2425.0,2424.0,17.813]
[1747618893528,4.12388139,2424.9,2424.1,0.7721]
[1747618893727,4.12558273,2423.9,2423.8,0.31093352]
[1747618894126,4.12543526,2424.0,2423.6,9.102]
[1747618894127,0.7793,2424.5,2423.6,13.22800969]
[1747618894327,4.12544205,2424.0,2423.6,9.102]
[1747618894530,9.097,2424.4,2423.7,0.7721]
[1747618894731,13.22175601,2424.4,2423.7,4.89800154]
[1747618894931,4.12516026,2424.2,2423.8,1.40000015]
[1747618896206,4.12496851,2424.3,2423.8,1.40000015]
[1747618896405,9.097,2424.4,2423.8,1.40000015]
[1747618896645,13.2217496,2424.4,2423.7,0.7721]
[1747618897042,4.12516818,2424.2,2423.8,9.103]
[1747618897343,4.12502157,2424.3,2423.8,9.103]
[1747618898131,4.12511217,2424.2,2423.8,9.103]
[1747618898745,1.60406199,2424.8,2423.9,0.04125054]
[1747618898910,9.9261,2425.2,2424.0,18.6356]
[1747618899113,4.12524235,2424.1,2424.0,26.916]
[1747618900945,4.12499215,2424.3,2424.0,26.916]
[1747618901652,4.12463871,2424.5,2424.1,0.8231]
[1747618901949,4.12455939,2424.6,2424.1,0.8231]
[1747618902111,4.12371134,2425.0,2424.1,4.06453795]
[1747618902314,4.12489487,2424.4,2424.1,4.06453795]
[1747618902747,13.99264696,2425.1,2424.2,9.103]
[1747618902748,4.12490203,2424.3,2424.2,9.103]
[1747618903611,4.1246557,2424.5,2424.2,9.103]
[1747618903868,4.12484087,2424.4,2424.2,9.103]
[1747618904239,4.12490203,2424.3,2424.2,9.103]
[1747618904438,4.12422155,2424.7,2424.2,9.103]
[1747618904638,4.12490203,2424.3,2424.2,9.103]